[Event "Late-Titled-Tuesday-Blitz-October-03-2023"]
[Site "Chess.com"]
[Date "2023.10.03"]
[Round "6"]
[White "FERNANDEZL1983"]
[Black "Schwindle"]
[Result "1-0"]
[WhiteElo "2616"]
[BlackElo "2403"]
[TimeControl "180+1"]
[EndTime "15:02:13 PDT"]
[Termination "FERNANDEZL1983 won by resignation"]

1. e4 {[%clk 0:03:00.9]} 1... e6 {[%clk 0:03:00.3]} 2. d3 {[%clk 0:03:00.3]}
2... c5 {[%clk 0:03:00.2]} 3. Nd2 {[%clk 0:02:59.8]} 3... Nc6 {[%clk 0:03:00.8]}
4. Ngf3 {[%clk 0:02:59.8]} 4... d6 {[%clk 0:03:01.4]} 5. g3 {[%clk 0:02:59.5]}
5... g6 {[%clk 0:03:01.7]} 6. Bg2 {[%clk 0:03:00]} 6... Bg7 {[%clk 0:03:02.3]}
7. O-O {[%clk 0:03:00.3]} 7... Nge7 {[%clk 0:03:02.9]} 8. c3 {[%clk 0:03:00.5]}
8... e5 {[%clk 0:03:03]} 9. Nc4 {[%clk 0:03:00.1]} 9... O-O {[%clk 0:03:02.6]}
10. a4 {[%clk 0:02:59.7]} 10... a5 {[%clk 0:02:51.6]} 11. Nh4 {[%clk 0:02:49.2]}
11... h6 {[%clk 0:02:47.3]} 12. f4 {[%clk 0:02:47.8]} 12... exf4 {[%clk
0:02:26.7]} 13. gxf4 {[%clk 0:02:47.3]} 13... d5 {[%clk 0:02:20.6]} 14. Ne3
{[%clk 0:02:38.8]} 14... d4 {[%clk 0:02:09.1]} 15. cxd4 {[%clk 0:02:34.9]} 15...
Nxd4 {[%clk 0:02:06.2]} 16. f5 {[%clk 0:02:31.2]} 16... Nexf5 {[%clk 0:01:55.7]}
17. Nhxf5 {[%clk 0:02:31.3]} 17... gxf5 {[%clk 0:01:55.5]} 18. exf5 {[%clk
0:02:30.4]} 18... Qh4 {[%clk 0:01:09.5]} 19. Be4 {[%clk 0:02:11.1]} 19... Be5
{[%clk 0:00:56.9]} 20. Ng4 {[%clk 0:02:07.4]} 20... f6 {[%clk 0:00:44.9]} 21.
Nxe5 {[%clk 0:01:56.1]} 21... fxe5 {[%clk 0:00:44.9]} 22. Kh1 {[%clk 0:01:55.3]}
22... Kh8 {[%clk 0:00:43.7]} 23. Qe1 {[%clk 0:01:47.9]} 23... Qxe1 {[%clk
0:00:39.9]} 24. Rxe1 {[%clk 0:01:48.5]} 24... Nc2 {[%clk 0:00:40.2]} 25. Bxh6
{[%clk 0:01:48.3]} 25... Bxf5 {[%clk 0:00:31.2]} 26. Bxf8 {[%clk 0:01:46.6]}
26... Bxe4+ {[%clk 0:00:22.8]} 27. Rxe4 {[%clk 0:01:43.2]} 27... Nxa1 {[%clk
0:00:22]} 28. Bxc5 {[%clk 0:01:41.9]} 28... Rc8 {[%clk 0:00:17]} 29. Bd6 {[%clk
0:01:40.9]} 29... Kh7 {[%clk 0:00:12.8]} 30. Bxe5 {[%clk 0:01:40.5]} 30... Nc2
{[%clk 0:00:10.8]} 31. Bc3 {[%clk 0:01:39.6]} 31... Rf8 {[%clk 0:00:08.8]} 32.
Kg2 {[%clk 0:01:38.7]} 1-0

[Event "Late-Titled-Tuesday-Blitz-October-03-2023"]
[Site "Chess.com"]
[Date "2023.10.03"]
[Round "6"]
[White "Gogolev_Artemy"]
[Black "zajka-molotok"]
[Result "0-1"]
[WhiteElo "2394"]
[BlackElo "2560"]
[TimeControl "180+1"]
[EndTime "15:02:13 PDT"]
[Termination "zajka-molotok won by resignation"]

1. d4 {[%clk 0:02:56.4]} 1... d5 {[%clk 0:02:59.5]} 2. Bf4 {[%clk 0:02:55.5]}
2... c5 {[%clk 0:02:57.3]} 3. e3 {[%clk 0:02:55.9]} 3... Nc6 {[%clk 0:02:56.3]}
4. Nf3 {[%clk 0:02:55.3]} 4... Nf6 {[%clk 0:02:54.8]} 5. Nbd2 {[%clk 0:02:54.9]}
5... cxd4 {[%clk 0:02:47.6]} 6. exd4 {[%clk 0:02:54.5]} 6... Bg4 {[%clk
0:02:47.4]} 7. c3 {[%clk 0:02:54]} 7... e6 {[%clk 0:02:47.2]} 8. Qb3 {[%clk
0:02:52.4]} 8... Bd6 {[%clk 0:02:43.7]} 9. Qxb7 {[%clk 0:02:52.6]} 9... Bxf4
{[%clk 0:02:42.6]} 10. Qxc6+ {[%clk 0:02:53.1]} 10... Kf8 {[%clk 0:02:42]} 11.
g3 {[%clk 0:02:51.3]} 11... Bxd2+ {[%clk 0:02:26]} 12. Nxd2 {[%clk 0:02:50.1]}
12... Rb8 {[%clk 0:02:26.2]} 13. Nb3 {[%clk 0:02:44.6]} 13... Bf3 {[%clk
0:02:23.5]} 14. Rg1 {[%clk 0:02:44.8]} 14... Ne4 {[%clk 0:02:16.7]} 15. Be2
{[%clk 0:02:43.2]} 15... Qf6 {[%clk 0:02:08.9]} 16. Nc5 {[%clk 0:02:20.7]} 16...
Kg8 {[%clk 0:01:19]} 17. Nd7 {[%clk 0:02:12.5]} 17... Qg5 {[%clk 0:01:15.1]} 18.
Rd1 {[%clk 0:01:58.6]} 18... Bxe2 {[%clk 0:00:49.6]} 19. Nxb8 {[%clk 0:01:58.4]}
19... g6 {[%clk 0:00:39.9]} 20. Kxe2 {[%clk 0:01:53.4]} 20... Qh5+ {[%clk
0:00:36.5]} 21. g4 {[%clk 0:01:37.5]} 21... Qxh2 {[%clk 0:00:34.8]} 22. Rdf1
{[%clk 0:01:37.9]} 22... Qxb8 {[%clk 0:00:33.9]} 23. Rb1 {[%clk 0:01:23.3]}
23... Qf4 {[%clk 0:00:30.5]} 24. Rg2 {[%clk 0:01:07]} 24... Qd2+ {[%clk
0:00:28.6]} 25. Kf1 {[%clk 0:01:06.9]} 25... Qd3+ {[%clk 0:00:28.4]} 0-1

[Event "Late-Titled-Tuesday-Blitz-October-03-2023"]
[Site "Chess.com"]
[Date "2023.10.03"]
[Round "6"]
[White "Mikedannnn"]
[Black "Caisachess"]
[Result "1-0"]
[WhiteElo "2555"]
[BlackElo "2422"]
[TimeControl "180+1"]
[EndTime "15:02:14 PDT"]
[Termination "Mikedannnn won by resignation"]

1. e4 {[%clk 0:03:00.9]} 1... e5 {[%clk 0:02:59.5]} 2. Nf3 {[%clk 0:03:00.3]}
2... Nc6 {[%clk 0:03:00.2]} 3. Bb5 {[%clk 0:02:59.8]} 3... f5 {[%clk 0:03:00.8]}
4. Nc3 {[%clk 0:02:57.6]} 4... fxe4 {[%clk 0:03:00.8]} 5. Nxe4 {[%clk
0:02:56.2]} 5... Nf6 {[%clk 0:03:01.2]} 6. Qe2 {[%clk 0:02:53.2]} 6... d5 {[%clk
0:03:00.4]} 7. Nxf6+ {[%clk 0:02:48]} 7... gxf6 {[%clk 0:03:01.3]} 8. d4 {[%clk
0:02:35.6]} 8... Bg7 {[%clk 0:02:59.9]} 9. dxe5 {[%clk 0:02:25.8]} 9... O-O
{[%clk 0:03:00.2]} 10. e6 {[%clk 0:02:23]} 10... Ne5 {[%clk 0:02:55.4]} 11. O-O
{[%clk 0:01:59.5]} 11... c6 {[%clk 0:02:52.4]} 12. Bd3 {[%clk 0:01:59]} 12...
Bxe6 {[%clk 0:02:52.6]} 13. Nd4 {[%clk 0:01:56.6]} 13... Bg4 {[%clk 0:02:51.9]}
14. Qe3 {[%clk 0:01:52.5]} 14... Qb6 {[%clk 0:02:43.3]} 15. Bf5 {[%clk
0:01:44.3]} 15... Bxf5 {[%clk 0:02:35.2]} 16. Nxf5 {[%clk 0:01:45.2]} 16... Qxe3
{[%clk 0:02:35.2]} 17. Bxe3 {[%clk 0:01:44.8]} 17... b6 {[%clk 0:02:18.7]} 18.
Bd4 {[%clk 0:01:31.6]} 18... Kf7 {[%clk 0:02:14.8]} 19. f4 {[%clk 0:01:26.9]}
19... Nc4 {[%clk 0:02:07.2]} 20. Rae1 {[%clk 0:01:19.6]} 20... Bh8 {[%clk
0:01:49.4]} 21. g4 {[%clk 0:01:11.2]} 21... Rfe8 {[%clk 0:01:42.7]} 22. b3
{[%clk 0:01:09.4]} 22... Rxe1 {[%clk 0:01:35]} 23. Rxe1 {[%clk 0:01:08.6]} 23...
Na3 {[%clk 0:01:25.4]} 24. Re7+ {[%clk 0:01:07.1]} 24... Kg8 {[%clk 0:01:18.3]}
25. Nh6+ {[%clk 0:00:51.8]} 25... Kf8 {[%clk 0:01:17.6]} 26. Rf7+ {[%clk
0:00:52.4]} 26... Ke8 {[%clk 0:01:13.4]} 27. Rxh7 {[%clk 0:00:53.3]} 27... Rd8
{[%clk 0:01:09.4]} 28. Rxh8+ {[%clk 0:00:52.3]} 28... Kd7 {[%clk 0:01:10.1]} 29.
Rxd8+ {[%clk 0:00:52.5]} 29... Kxd8 {[%clk 0:01:11]} 30. Bxf6+ {[%clk
0:00:53.1]} 30... Ke8 {[%clk 0:01:10.6]} 31. g5 {[%clk 0:00:53.1]} 31... Nxc2
{[%clk 0:01:08.1]} 32. g6 {[%clk 0:00:53.4]} 1-0

[Event "Late-Titled-Tuesday-Blitz-October-03-2023"]
[Site "Chess.com"]
[Date "2023.10.03"]
[Round "6"]
[White "traack"]
[Black "bazar-wokzal"]
[Result "1-0"]
[WhiteElo "2443"]
[BlackElo "2579"]
[TimeControl "180+1"]
[EndTime "15:02:15 PDT"]
[Termination "traack won by checkmate"]

1. e4 {[%clk 0:02:59.4]} 1... Nc6 {[%clk 0:02:59.4]} 2. Nf3 {[%clk 0:02:59.4]}
2... d5 {[%clk 0:02:59.1]} 3. exd5 {[%clk 0:03:00.3]} 3... Qxd5 {[%clk
0:02:58.7]} 4. Nc3 {[%clk 0:03:00.7]} 4... Qa5 {[%clk 0:02:58.7]} 5. Bc4 {[%clk
0:02:55.4]} 5... Bg4 {[%clk 0:02:58.4]} 6. h3 {[%clk 0:02:50.6]} 6... Bh5 {[%clk
0:02:58.1]} 7. g4 {[%clk 0:02:37.7]} 7... Bg6 {[%clk 0:02:57.7]} 8. Qe2 {[%clk
0:02:37.9]} 8... O-O-O {[%clk 0:02:56.3]} 9. d3 {[%clk 0:02:35.9]} 9... e5
{[%clk 0:02:56]} 10. Bd2 {[%clk 0:02:35.8]} 10... Bb4 {[%clk 0:02:43.1]} 11.
O-O-O {[%clk 0:02:21.8]} 11... Nf6 {[%clk 0:02:10.6]} 12. a3 {[%clk 0:02:19.8]}
12... Bxa3 {[%clk 0:02:06.1]} 13. bxa3 {[%clk 0:01:57.8]} 13... Qxa3+ {[%clk
0:02:05.9]} 14. Kb1 {[%clk 0:01:58.4]} 14... Rhe8 {[%clk 0:01:53.7]} 15. Bb3
{[%clk 0:01:43.6]} 15... Nd4 {[%clk 0:01:45.6]} 16. Nxd4 {[%clk 0:01:40.6]}
16... exd4 {[%clk 0:01:45.4]} 17. Ne4 {[%clk 0:01:40.4]} 17... Nxe4 {[%clk
0:01:44.7]} 18. dxe4 {[%clk 0:01:40.6]} 18... Bxe4 {[%clk 0:01:45]} 19. Qc4
{[%clk 0:01:30.1]} 19... Bxh1 {[%clk 0:00:47.1]} 20. Rxh1 {[%clk 0:01:28.7]}
20... d3 {[%clk 0:00:37]} 21. cxd3 {[%clk 0:01:25.9]} 21... Re2 {[%clk
0:00:34.3]} 22. Bc1 {[%clk 0:01:26.3]} 22... Qd6 {[%clk 0:00:28.4]} 23. Bf4
{[%clk 0:01:07]} 23... Qf6 {[%clk 0:00:22.4]} 24. Qxc7# {[%clk 0:01:05.3]} 1-0

[Event "Late-Titled-Tuesday-Blitz-October-03-2023"]
[Site "Chess.com"]
[Date "2023.10.03"]
[Round "6"]
[White "ritanovikova"]
[Black "MarkoPe"]
[Result "0-1"]
[WhiteElo "2177"]
[BlackElo "2358"]
[TimeControl "180+1"]
[EndTime "15:02:19 PDT"]
[Termination "MarkoPe won by resignation"]

1. d4 {[%clk 0:03:00]} 1... c6 {[%clk 0:03:00.9]} 2. e4 {[%clk 0:02:59.2]} 2...
d6 {[%clk 0:03:01.8]} 3. Nc3 {[%clk 0:02:59]} 3... Nd7 {[%clk 0:03:02.7]} 4. Nf3
{[%clk 0:02:59.1]} 4... Ngf6 {[%clk 0:03:03.6]} 5. Be2 {[%clk 0:02:59.1]} 5...
g6 {[%clk 0:03:03.6]} 6. O-O {[%clk 0:02:59.3]} 6... Bg7 {[%clk 0:03:04.1]} 7.
h3 {[%clk 0:02:59.2]} 7... O-O {[%clk 0:03:04.6]} 8. a4 {[%clk 0:02:59.6]} 8...
e5 {[%clk 0:03:05]} 9. Be3 {[%clk 0:02:59.8]} 9... Qc7 {[%clk 0:03:04.8]} 10.
Qd2 {[%clk 0:02:54.7]} 10... Re8 {[%clk 0:03:05.2]} 11. dxe5 {[%clk 0:02:51.5]}
11... Nxe5 {[%clk 0:03:05]} 12. Nxe5 {[%clk 0:02:51.3]} 12... dxe5 {[%clk
0:03:05.9]} 13. Rad1 {[%clk 0:02:48.5]} 13... Be6 {[%clk 0:03:04.6]} 14. f4
{[%clk 0:02:44.8]} 14... exf4 {[%clk 0:03:02.4]} 15. Bxf4 {[%clk 0:02:44.7]}
15... Qb6+ {[%clk 0:03:02.8]} 16. Kh2 {[%clk 0:02:43.4]} 16... Rad8 {[%clk
0:02:35]} 17. Qc1 {[%clk 0:01:40.5]} 17... Nh5 {[%clk 0:02:23.6]} 18. Bxh5
{[%clk 0:01:36.6]} 18... gxh5 {[%clk 0:02:23.7]} 19. Bh6 {[%clk 0:01:23]} 19...
Qc5 {[%clk 0:02:03.3]} 20. Rxd8 {[%clk 0:01:17.5]} 20... Rxd8 {[%clk 0:02:03]}
21. Rf3 {[%clk 0:01:07]} 21... Qe5+ {[%clk 0:01:28.4]} 22. Rg3 {[%clk
0:00:56.9]} 22... h4 {[%clk 0:01:12.2]} 0-1

[Event "Late-Titled-Tuesday-Blitz-October-03-2023"]
[Site "Chess.com"]
[Date "2023.10.03"]
[Round "6"]
[White "dorpato"]
[Black "Saraisitave"]
[Result "1-0"]
[WhiteElo "2057"]
[BlackElo "2239"]
[TimeControl "180+1"]
[EndTime "15:02:25 PDT"]
[Termination "dorpato won by resignation"]

1. e4 {[%clk 0:03:00.9]} 1... e6 {[%clk 0:02:59.7]} 2. d4 {[%clk 0:02:59.8]}
2... d5 {[%clk 0:02:59.7]} 3. e5 {[%clk 0:03:00.4]} 3... c5 {[%clk 0:02:59.1]}
4. c3 {[%clk 0:03:01.1]} 4... Nc6 {[%clk 0:02:59.8]} 5. Nf3 {[%clk 0:03:01.2]}
5... Bd7 {[%clk 0:03:00.3]} 6. a3 {[%clk 0:02:59.5]} 6... c4 {[%clk 0:02:52.5]}
7. Nbd2 {[%clk 0:02:56.2]} 7... f6 {[%clk 0:02:52.7]} 8. b3 {[%clk 0:02:42]}
8... fxe5 {[%clk 0:02:49.1]} 9. Nxe5 {[%clk 0:02:34.6]} 9... Nxe5 {[%clk
0:02:46.6]} 10. dxe5 {[%clk 0:02:35.5]} 10... b5 {[%clk 0:02:34.8]} 11. Be2
{[%clk 0:02:25.4]} 11... Ne7 {[%clk 0:02:17]} 12. O-O {[%clk 0:02:19.2]} 12...
Qb6 {[%clk 0:02:13.2]} 13. Nf3 {[%clk 0:02:13.8]} 13... Nc6 {[%clk 0:02:09.5]}
14. Be3 {[%clk 0:02:06.7]} 14... Qc7 {[%clk 0:02:08.2]} 15. Bf4 {[%clk
0:01:59.5]} 15... g6 {[%clk 0:02:05.6]} 16. Re1 {[%clk 0:01:57.7]} 16... Bg7
{[%clk 0:02:05.6]} 17. Bf1 {[%clk 0:01:56.9]} 17... O-O {[%clk 0:02:05.4]} 18.
Bg3 {[%clk 0:01:56.4]} 18... a6 {[%clk 0:01:52.7]} 19. Rc1 {[%clk 0:01:41.4]}
19... cxb3 {[%clk 0:01:52.1]} 20. Qxb3 {[%clk 0:01:40]} 20... Na5 {[%clk
0:01:52.1]} 21. Qd1 {[%clk 0:01:37.6]} 21... Rac8 {[%clk 0:01:49.8]} 22. Nd4
{[%clk 0:01:33.3]} 22... Nc4 {[%clk 0:01:48.9]} 23. Bxc4 {[%clk 0:01:31.4]}
23... Qxc4 {[%clk 0:01:48.9]} 24. f4 {[%clk 0:01:26.6]} 24... Qa2 {[%clk
0:01:36.2]} 25. Ra1 {[%clk 0:01:23.8]} 25... Qb2 {[%clk 0:01:35.1]} 26. Re3
{[%clk 0:01:06]} 26... Rxc3 {[%clk 0:01:25.6]} 27. Re2 {[%clk 0:01:05]} 27...
Rd3 {[%clk 0:00:43.6]} 28. Rxb2 {[%clk 0:01:01.5]} 28... Rxd1+ {[%clk
0:00:43.4]} 29. Rxd1 {[%clk 0:01:02.2]} 29... Rc8 {[%clk 0:00:43]} 30. Rc2
{[%clk 0:01:02.2]} 30... Rd8 {[%clk 0:00:42.1]} 31. Rc7 {[%clk 0:00:59.2]} 31...
Be8 {[%clk 0:00:40.1]} 32. Nxe6 {[%clk 0:00:58.3]} 1-0

[Event "Late-Titled-Tuesday-Blitz-October-03-2023"]
[Site "Chess.com"]
[Date "2023.10.03"]
[Round "6"]
[White "crazy_but_lazy"]
[Black "miraitrunks"]
[Result "1-0"]
[WhiteElo "2589"]
[BlackElo "2214"]
[TimeControl "180+1"]
[EndTime "15:02:29 PDT"]
[Termination "crazy_but_lazy won by resignation"]

1. d4 {[%clk 0:02:55.2]} 1... d5 {[%clk 0:02:59.6]} 2. Nf3 {[%clk 0:02:55.7]}
2... Nf6 {[%clk 0:02:58.8]} 3. Bf4 {[%clk 0:02:56]} 3... Bf5 {[%clk 0:02:59]} 4.
e3 {[%clk 0:02:55.7]} 4... e6 {[%clk 0:02:59.3]} 5. Nbd2 {[%clk 0:02:54.9]} 5...
Bd6 {[%clk 0:02:58.1]} 6. Ne5 {[%clk 0:02:49]} 6... Nbd7 {[%clk 0:02:57.9]} 7.
c3 {[%clk 0:02:44.7]} 7... Ne4 {[%clk 0:02:53.4]} 8. Nxe4 {[%clk 0:02:11.6]}
8... Bxe4 {[%clk 0:02:54.3]} 9. f3 {[%clk 0:02:01]} 9... Bxe5 {[%clk 0:02:50.7]}
10. dxe5 {[%clk 0:01:56.9]} 10... Bg6 {[%clk 0:02:48.2]} 11. h4 {[%clk
0:01:54.9]} 11... h5 {[%clk 0:02:46.6]} 12. Bd3 {[%clk 0:01:54.8]} 12... O-O
{[%clk 0:02:38.8]} 13. Bxg6 {[%clk 0:01:53.3]} 13... fxg6 {[%clk 0:02:39.7]} 14.
Qd3 {[%clk 0:01:53.7]} 14... Qe8 {[%clk 0:02:39.3]} 15. O-O-O {[%clk 0:01:53.7]}
15... Qf7 {[%clk 0:02:39.3]} 16. g4 {[%clk 0:01:51.5]} 16... c5 {[%clk
0:02:34.3]} 17. Rhg1 {[%clk 0:01:47.5]} 17... c4 {[%clk 0:02:33.8]} 18. Qd4
{[%clk 0:01:46]} 18... b5 {[%clk 0:02:30.5]} 19. gxh5 {[%clk 0:01:45]} 19... b4
{[%clk 0:02:23]} 20. Rxg6 {[%clk 0:01:36.6]} 20... bxc3 {[%clk 0:02:22.4]} 21.
Qxc3 {[%clk 0:01:00.8]} 21... Nc5 {[%clk 0:02:11.5]} 22. Rdg1 {[%clk 0:01:00.6]}
22... Nd3+ {[%clk 0:02:11.7]} 23. Kb1 {[%clk 0:00:53.8]} 23... Qf5 {[%clk
0:02:01.4]} 24. Rxg7+ {[%clk 0:00:48.9]} 24... Kh8 {[%clk 0:02:01.8]} 25. Ka1
{[%clk 0:00:48.5]} 25... Rab8 {[%clk 0:01:57.5]} 26. R7g6 {[%clk 0:00:42.7]}
26... Rf7 {[%clk 0:01:42.2]} 27. Bg5 {[%clk 0:00:28.9]} 27... Nb4 {[%clk
0:01:18.5]} 28. Rh6+ {[%clk 0:00:27.8]} 28... Rh7 {[%clk 0:01:18.2]} 29. Bf6+
{[%clk 0:00:27.2]} 29... Qxf6 {[%clk 0:01:15.2]} 30. Rxh7+ {[%clk 0:00:27.5]}
30... Kxh7 {[%clk 0:01:15]} 31. exf6 {[%clk 0:00:28.2]} 1-0

[Event "Late-Titled-Tuesday-Blitz-October-03-2023"]
[Site "Chess.com"]
[Date "2023.10.03"]
[Round "6"]
[White "slorovel"]
[Black "OYAcosta"]
[Result "1-0"]
[WhiteElo "2490"]
[BlackElo "2190"]
[TimeControl "180+1"]
[EndTime "15:02:32 PDT"]
[Termination "slorovel won by resignation"]

1. e4 {[%clk 0:02:51.8]} 1... c6 {[%clk 0:02:40.2]} 2. d4 {[%clk 0:02:51.2]}
2... d5 {[%clk 0:02:41.1]} 3. e5 {[%clk 0:02:51.5]} 3... Bf5 {[%clk 0:02:41.3]}
4. Nd2 {[%clk 0:02:50.2]} 4... e6 {[%clk 0:02:41.2]} 5. Nb3 {[%clk 0:02:47.9]}
5... Nd7 {[%clk 0:02:39]} 6. Nf3 {[%clk 0:02:47]} 6... Ne7 {[%clk 0:02:38.8]} 7.
Be2 {[%clk 0:02:42.1]} 7... Bg6 {[%clk 0:02:12.5]} 8. O-O {[%clk 0:02:41.5]}
8... Nf5 {[%clk 0:02:12.6]} 9. a4 {[%clk 0:02:37.4]} 9... Be7 {[%clk 0:02:12.5]}
10. a5 {[%clk 0:02:37.4]} 10... a6 {[%clk 0:02:13]} 11. c4 {[%clk 0:02:37.8]}
11... dxc4 {[%clk 0:02:11.8]} 12. Bxc4 {[%clk 0:02:38.7]} 12... O-O {[%clk
0:02:11.7]} 13. Qe2 {[%clk 0:02:31.1]} 13... Bh5 {[%clk 0:02:09.5]} 14. Rd1
{[%clk 0:02:29.8]} 14... Bb4 {[%clk 0:02:07.4]} 15. Bd3 {[%clk 0:02:28.7]} 15...
Ne7 {[%clk 0:01:53.1]} 16. Bxh7+ {[%clk 0:02:00.7]} 16... Kxh7 {[%clk
0:01:52.5]} 17. Ng5+ {[%clk 0:01:59]} 17... Kg6 {[%clk 0:01:52.7]} 18. Qe4+
{[%clk 0:01:56.1]} 18... Nf5 {[%clk 0:01:52.7]} 19. g4 {[%clk 0:01:55.9]} 19...
Be7 {[%clk 0:01:43.5]} 20. h4 {[%clk 0:01:47.3]} 20... Bxg5 {[%clk 0:01:42.7]}
21. Bxg5 {[%clk 0:01:46.5]} 21... f6 {[%clk 0:01:42.9]} 22. exf6 {[%clk
0:01:46]} 22... gxf6 {[%clk 0:01:41]} 23. gxh5+ {[%clk 0:01:43.1]} 23... Kxh5
{[%clk 0:01:39.1]} 24. Bf4 {[%clk 0:01:32.4]} 24... Qe8 {[%clk 0:01:24]} 25.
Qf3+ {[%clk 0:01:29.9]} 25... Kg6 {[%clk 0:01:24.1]} 26. Kh2 {[%clk 0:01:26.7]}
26... Kh7 {[%clk 0:01:14.6]} 27. Rg1 {[%clk 0:01:20.1]} 27... Qf7 {[%clk
0:01:13.3]} 28. Nd2 {[%clk 0:01:18.4]} 28... Rg8 {[%clk 0:01:07.6]} 29. Ne4
{[%clk 0:01:17.2]} 29... Nxd4 {[%clk 0:01:04.9]} 30. Qd3 {[%clk 0:01:15.7]}
30... Nf5 {[%clk 0:01:05]} 31. Qxd7 {[%clk 0:01:15.1]} 31... Ne7 {[%clk
0:00:58.7]} 32. Qd3 {[%clk 0:01:11.1]} 32... f5 {[%clk 0:00:58.6]} 33. Ng5+
{[%clk 0:01:10.6]} 33... Rxg5 {[%clk 0:00:59.3]} 34. Rxg5 {[%clk 0:01:07.7]}
34... Ng6 {[%clk 0:00:58.4]} 35. Qf3 {[%clk 0:01:04.3]} 35... e5 {[%clk
0:00:51.1]} 36. Qh5+ {[%clk 0:00:51]} 36... Kg7 {[%clk 0:00:51.5]} 37. Bxe5+
{[%clk 0:00:51.4]} 1-0

[Event "Late-Titled-Tuesday-Blitz-October-03-2023"]
[Site "Chess.com"]
[Date "2023.10.03"]
[Round "6"]
[White "Likvidator228"]
[Black "Onthequiet"]
[Result "0-1"]
[WhiteElo "2545"]
[BlackElo "2414"]
[TimeControl "180+1"]
[EndTime "15:02:33 PDT"]
[Termination "Onthequiet won by resignation"]

1. g4 {[%clk 0:02:59.4]} 1... d5 {[%clk 0:02:57.8]} 2. Bg2 {[%clk 0:02:59.3]}
2... c6 {[%clk 0:02:58.3]} 3. h3 {[%clk 0:02:57.6]} 3... g6 {[%clk 0:02:57.9]}
4. d4 {[%clk 0:02:57.8]} 4... Bg7 {[%clk 0:02:58.2]} 5. Nf3 {[%clk 0:02:55.2]}
5... h5 {[%clk 0:02:57.9]} 6. g5 {[%clk 0:02:54.5]} 6... Nd7 {[%clk 0:02:57.5]}
7. Bf4 {[%clk 0:02:51.1]} 7... e6 {[%clk 0:02:57.3]} 8. c3 {[%clk 0:02:50.9]}
8... c5 {[%clk 0:02:56.4]} 9. Nbd2 {[%clk 0:02:50.2]} 9... Qb6 {[%clk
0:02:55.3]} 10. Qb3 {[%clk 0:02:48.1]} 10... Ne7 {[%clk 0:02:53.1]} 11. Qxb6
{[%clk 0:02:45.1]} 11... axb6 {[%clk 0:02:53]} 12. e3 {[%clk 0:02:44.3]} 12...
Nc6 {[%clk 0:02:49.5]} 13. a3 {[%clk 0:02:37.8]} 13... e5 {[%clk 0:02:48.6]} 14.
dxe5 {[%clk 0:02:37.1]} 14... Ndxe5 {[%clk 0:02:48.2]} 15. Nxe5 {[%clk
0:02:37.3]} 15... Nxe5 {[%clk 0:02:46.5]} 16. Ke2 {[%clk 0:02:36.5]} 16... Be6
{[%clk 0:02:40.4]} 17. Rad1 {[%clk 0:02:33.2]} 17... O-O-O {[%clk 0:02:39.6]}
18. Nf3 {[%clk 0:02:33.6]} 18... Nc4 {[%clk 0:02:36.3]} 19. Nd2 {[%clk
0:02:26.2]} 19... Nxb2 {[%clk 0:02:30.3]} 20. Rb1 {[%clk 0:02:26.1]} 20... Na4
{[%clk 0:02:30.1]} 21. Rhc1 {[%clk 0:02:20.8]} 21... Bxc3 {[%clk 0:02:24.9]} 22.
Nf3 {[%clk 0:02:14.7]} 22... Rhe8 {[%clk 0:02:20.4]} 23. Be5 {[%clk 0:02:11.3]}
23... Bf5 {[%clk 0:02:13.2]} 24. Bxc3 {[%clk 0:02:10]} 24... Nxc3+ {[%clk
0:02:12.1]} 25. Rxc3 {[%clk 0:02:07.5]} 25... Bxb1 {[%clk 0:02:12.3]} 26. Rb3
{[%clk 0:02:05.2]} 26... Be4 {[%clk 0:02:08.2]} 27. Rxb6 {[%clk 0:02:05.7]}
27... Kc7 {[%clk 0:02:07.8]} 28. Rb5 {[%clk 0:02:04.4]} 28... b6 {[%clk
0:02:07.4]} 29. Bf1 {[%clk 0:01:58.9]} 29... d4 {[%clk 0:02:06.5]} 30. Nd2
{[%clk 0:01:56.7]} 30... dxe3 {[%clk 0:02:00.8]} 31. Nxe4 {[%clk 0:01:56.8]}
31... Rxe4 {[%clk 0:01:54.7]} 32. fxe3 {[%clk 0:01:56.5]} 32... Ra4 {[%clk
0:01:50.4]} 33. Rb3 {[%clk 0:01:48.6]} 33... Rda8 {[%clk 0:01:49.7]} 34. Rd3
{[%clk 0:01:47.6]} 34... Rxa3 {[%clk 0:01:49]} 35. Rd5 {[%clk 0:01:48]} 35...
Re8 {[%clk 0:01:41.4]} 36. Bg2 {[%clk 0:01:47.6]} 36... Raxe3+ {[%clk
0:01:39.3]} 37. Kf2 {[%clk 0:01:47.8]} 37... Re2+ {[%clk 0:01:38.9]} 38. Kf1
{[%clk 0:01:44.1]} 38... R2e5 {[%clk 0:01:33.4]} 39. Rd3 {[%clk 0:01:42.4]}
39... Rxg5 {[%clk 0:01:30.8]} 40. Ra3 {[%clk 0:01:43]} 40... Rf5+ {[%clk
0:01:26.4]} 41. Bf3 {[%clk 0:01:42.5]} 41... b5 {[%clk 0:01:21.8]} 42. Kg2
{[%clk 0:01:41.7]} 42... Rb8 {[%clk 0:01:14.8]} 43. Ra7+ {[%clk 0:01:41.5]}
43... Kd6 {[%clk 0:01:14.7]} 44. Ra6+ {[%clk 0:01:40.8]} 44... Ke5 {[%clk
0:01:13.9]} 45. Rc6 {[%clk 0:01:40.4]} 45... Kd4 {[%clk 0:01:12.7]} 46. Rd6+
{[%clk 0:01:38.8]} 46... Kc3 {[%clk 0:01:11.9]} 47. Be4 {[%clk 0:01:37.7]} 47...
Rg5+ {[%clk 0:01:07.1]} 48. Kf3 {[%clk 0:01:37.7]} 48... c4 {[%clk 0:01:07.1]}
49. h4 {[%clk 0:01:35.2]} 49... Rg4 {[%clk 0:01:06.2]} 50. Rd7 {[%clk
0:01:34.4]} 50... f5 {[%clk 0:01:04.2]} 51. Bc6 {[%clk 0:01:33]} 51... Rxh4
{[%clk 0:01:03]} 52. Rd5 {[%clk 0:01:31.2]} 52... b4 {[%clk 0:01:00.4]} 53. Rc5
{[%clk 0:01:30.8]} 53... Rg4 {[%clk 0:00:59]} 54. Bd5 {[%clk 0:01:29.7]} 54...
b3 {[%clk 0:00:58.3]} 0-1